bitfinex-derivatives/quotes_BTCF0:USTF0_20241117
["timestamp","ask_amount","ask_price","bid_price","bid_amount"]
[1731862755832,0.5320684,90507.0,90506.0,0.00012328]
[1731862756018,0.416041,90507.0,90506.0,0.00012328]
[1731862756528,0.58166805,90507.0,90506.0,0.00012328]
[1731862756717,0.41454068,90507.0,90506.0,0.00012328]
[1731862757622,0.47682723,90507.0,90506.0,0.00012328]
[1731862757818,0.53206846,90507.0,90506.0,0.00012328]
[1731862759027,0.66929679,90507.0,90506.0,0.00012328]
[1731862759427,0.59435501,90507.0,90506.0,0.00012328]
[1731862759728,0.055245,90501.0,90494.0,0.08316]
[1731862759926,0.055245,90501.0,90500.0,0.5]
[1731862759927,0.17127246,90501.0,90500.0,0.5]
[1731862761133,0.36996241,90501.0,90500.0,0.5]
[1731862761331,0.17127246,90501.0,90500.0,0.5]
[1731862761837,0.54027395,90501.0,90500.0,0.26777979]
[1731862762021,0.54006352,90501.0,90500.0,0.26777979]
[1731862762222,0.30837428,90501.0,90500.0,0.26777979]
[1731862762918,0.34007428,90501.0,90500.0,0.26777979]
[1731862763117,0.22254273,90501.0,90500.0,0.26777979]
[1731862763328,0.08544091,90501.0,90500.0,0.26777979]
[1731862763733,0.24052481,90501.0,90492.0,0.01968735]
[1731862763929,0.20882481,90500.0,90498.0,0.06228655]
[1731862764339,0.20882481,90500.0,90499.0,0.055245]
[1731862764635,0.05374091,90500.0,90499.0,0.055245]
[1731862764832,0.05374302,90501.0,90499.0,0.055246]
[1731862766119,0.1984663,90500.0,90499.0,0.055246]
[1731862766628,0.05374302,90500.0,90499.0,0.055246]
[1731862766829,0.1984663,90501.0,90499.0,0.055246]
[1731862766830,0.05374302,90501.0,90499.0,0.055246]
[1731862767023,0.25220514,90500.0,90499.0,0.055246]
[1731862767218,0.3608,90507.0,90499.0,0.20069255]
[1731862767424,0.21372476,90506.0,90505.0,0.055242]
[1731862767923,0.05374181,90506.0,90505.0,0.055242]
[1731862769328,0.05374181,90506.0,90499.0,0.14544655]
[1731862769329,0.055244,90503.0,90499.0,0.055246]
[1731862769536,0.17852994,90502.0,90500.0,0.055245]
[1731862769733,0.05374339,90501.0,90500.0,0.055245]
[1731862771444,0.05374339,90501.0,90500.0,0.11753155]
[1731862772132,0.05374339,90501.0,90500.0,0.1503524]
[1731862772642,0.19847464,90502.0,90500.0,0.1503524]
[1731862772827,0.36144,90507.0,90500.0,0.1503524]
[1731862772828,0.05374339,90501.0,90500.0,0.1503524]
[1731862773033,0.05374173,90503.0,90502.0,0.055244]
[1731862773228,0.05374173,90503.0,90500.0,0.0951074]
[1731862773533,0.05374173,90502.0,90501.0,0.055245]
[1731862773941,0.19847464,90506.0,90504.0,0.055243]
[1731862774152,0.25221608,90506.0,90505.0,0.06228655]
[1731862774437,0.25222567,90506.0,90505.0,0.06228655]
[1731862774740,0.05374144,90506.0,90505.0,0.06228655]
[1731862775539,0.19849185,90509.0,90508.0,0.05524]
[1731862775740,0.05373904,90509.0,90506.0,0.055242]
[1731862775934,0.19849185,90511.0,90505.0,0.06228655]
[1731862775935,0.05373904,90508.0,90505.0,0.06228655]
[1731862776135,0.19849185,90511.0,90510.0,0.055239]
[1731862776339,0.19849185,90511.0,90510.0,0.11752555]
[1731862776735,0.05373921,90511.0,90510.0,0.11752555]
[1731862777530,0.3608,90513.0,90512.0,0.055238]
[1731862777730,0.41453449,90513.0,90512.0,0.055238]
[1731862778040,0.05373449,90513.0,90512.0,0.055238]
[1731862778539,0.05373449,90514.0,90512.0,0.055238]
[1731862778840,0.05373449,90513.0,90512.0,0.055238]
[1731862779051,0.05373449,90514.0,90510.0,0.06228655]
[1731862779343,0.0322,90515.0,90514.0,0.055237]
[1731862779531,0.08593451,90515.0,90514.0,0.055237]
[1731862781535,0.28442636,90515.0,90514.0,0.055237]
[1731862783643,0.08593451,90515.0,90514.0,0.055237]
[1731862783947,0.0322,90515.0,90514.0,0.06228655]
[1731862784329,0.43148096,90515.0,90514.0,0.06228655]
[1731862784734,0.43148096,90515.0,90514.0,0.11752355]
[1731862784936,0.66408633,90515.0,90514.0,0.11752355]
[1731862786138,0.39928096,90515.0,90514.0,0.11752355]
[1731862791843,0.05373479,90515.0,90514.0,0.11752355]
[1731862792043,0.19859728,90519.0,90518.0,0.055234]
[1731862792292,0.05373445,90519.0,90518.0,0.055234]
[1731862792546,0.055232,90522.0,90520.0,0.055233]
[1731862792547,0.05373445,90521.0,90520.0,0.055233]
[1731862792734,0.05373445,90521.0,90514.0,0.06228655]
[1731862792940,0.19861335,90518.0,90514.0,0.06228655]
[1731862793140,0.19861335,90518.0,90517.0,0.055235]
[1731862793540,0.05373445,90518.0,90515.0,0.055236]
[1731862793741,0.25236405,90517.0,90516.0,0.055236]
[1731862794140,0.1986296,90517.0,90516.0,0.055236]
[1731862795548,0.055232,90522.0,90520.0,0.055233]
[1731862795743,0.055232,90522.0,90514.0,0.06228655]
[1731862795744,0.20751372,90521.0,90514.0,0.06228655]
[1731862795947,0.19863504,90517.0,90514.0,0.06228655]
[1731862796643,0.25236949,90517.0,90514.0,0.06228655]
[1731862796845,0.05373445,90516.0,90515.0,0.055236]
[1731862797237,0.05373445,90516.0,90514.0,0.06228655]
[1731862797441,0.19863504,90517.0,90514.0,0.06228655]
[1731862797442,0.05373445,90515.0,90514.0,0.11752355]
[1731862797750,0.19863504,90515.0,90510.0,0.0407098]
[1731862797945,0.19863504,90515.0,90508.0,0.14540655]
[1731862798250,0.1655356,90509.0,90508.0,0.20064655]
[1731862798946,0.23169683,90513.0,90512.0,0.055238]
[1731862799145,0.23169683,90513.0,90508.0,0.12355495]
[1731862799350,0.23176739,90511.0,90510.0,0.055239]
[1731862799554,0.20670067,90511.0,90508.0,0.12355495]
[1731862799851,0.4384937,90510.0,90509.0,0.05524]
[1731862800146,0.43849779,90510.0,90509.0,0.05524]
[1731862800458,0.3827473,90510.0,90509.0,0.05524]
[1731862802341,0.15148119,90510.0,90509.0,0.05524]
[1731862802656,0.29418777,90511.0,90499.0,0.0052]
[1731862802848,0.29418777,90511.0,90496.0,0.08316]
[1731862802849,0.055244,90503.0,90502.0,0.055244]
[1731862803050,0.3608,90504.0,90496.0,0.08316]
[1731862803253,0.3608,90504.0,90498.0,0.055247]
[1731862803254,0.055247,90499.0,90498.0,0.055247]
[1731862803438,0.055248,90496.0,90495.0,0.06234167]
[1731862803640,0.6212679,90496.0,90495.0,0.0014]
[1731862803958,0.055248,90495.0,90494.0,0.055249]
[1731862804152,0.4362953,90495.0,90494.0,0.055249]
[1731862804453,0.43622448,90495.0,90494.0,0.055249]
[1731862805051,0.05525,90492.0,90490.0,0.11759267]
[1731862805242,0.28711297,90492.0,90490.0,0.11759267]
[1731862805439,0.2604699,90492.0,90491.0,0.05534792]
[1731862806459,0.2604699,90492.0,90491.0,9.692e-05]
[1731862806846,0.10898871,90492.0,90491.0,9.692e-05]
[1731862807951,0.05373871,90492.0,90491.0,0.11768959]
[1731862808146,0.23186297,90510.0,90491.0,0.11768959]
[1731862808147,0.16543992,90494.0,90491.0,0.11768959]
[1731862808357,0.0311,90509.0,90491.0,0.11768959]
[1731862808358,0.16543992,90497.0,90496.0,0.055248]
[1731862808655,0.16543992,90502.0,90501.0,0.055245]
[1731862808842,0.16543992,90502.0,90501.0,0.11758667]
[1731862809760,0.16543992,90503.0,90502.0,0.055244]
[1731862810643,0.52623992,90504.0,90502.0,0.055244]
[1731862812145,0.3608,90504.0,90496.0,0.11758867]
[1731862812352,0.055247,90498.0,90496.0,0.11758867]
[1731862812548,0.16539133,90497.0,90492.0,0.10301159]
[1731862812760,0.055249,90494.0,90492.0,0.06234167]
[1731862813548,0.055249,90494.0,90492.0,0.11759167]
[1731862814071,0.05374694,90493.0,90492.0,0.15727736]
[1731862814360,0.055244,90502.0,90499.0,0.055246]
[1731862814566,0.20478479,90501.0,90499.0,0.055246]
[1731862814754,0.20478479,90500.0,90492.0,0.13468908]
[1731862815059,0.28710697,90502.0,90492.0,0.13468908]
[1731862815060,0.20478479,90499.0,90492.0,0.13468908]
[1731862815262,0.20478479,90498.0,90492.0,0.13468908]
[1731862815448,0.20478479,90497.0,90492.0,0.13468908]
[1731862815645,0.20478479,90496.0,90495.0,0.055248]
[1731862816749,0.20337367,90496.0,90492.0,0.13468908]
[1731862816954,0.116944,90503.0,90494.0,0.055249]
[1731862816955,0.05374473,90495.0,90494.0,0.055249]
[1731862817150,0.05374473,90495.0,90492.0,0.13468908]
[1731862817351,0.2521809,90494.0,90493.0,0.05525]
[1731862817560,0.19843617,90494.0,90493.0,0.05525]
[1731862817763,0.05374473,90494.0,90492.0,0.13468908]
[1731862818060,0.19843617,90494.0,90492.0,0.13468908]
[1731862818262,0.0537432,90493.0,90492.0,0.13468908]
[1731862818448,0.19843617,90495.0,90492.0,0.13468908]
[1731862818759,0.055248,90495.0,90494.0,0.055249]
[1731862818947,0.1089919,90495.0,90494.0,0.055249]
[1731862819269,0.20479666,90495.0,90494.0,0.055249]
[1731862819463,0.20329256,90495.0,90494.0,0.055249]
[1731862819650,0.20329256,90495.0,90492.0,0.13468908]
[1731862819855,0.05374499,90494.0,90493.0,0.05525]
[1731862820061,0.05374497,90499.0,90493.0,0.05525]
[1731862820266,0.05374497,90499.0,90492.0,0.13468908]
[1731862820267,0.14977537,90498.0,90492.0,0.13468908]
[1731862820561,0.20352034,90497.0,90496.0,0.055248]
[1731862820761,0.20352531,90499.0,90492.0,0.13468908]
[1731862820963,0.13230982,90493.0,90492.0,0.13468908]
[1731862821767,0.13230982,90493.0,90492.0,0.18993908]
[1731862822459,0.13233168,90493.0,90492.0,0.13468908]
[1731862822660,0.13233168,90493.0,90492.0,0.18993908]
[1731862824761,0.13236783,90493.0,90492.0,0.18993908]
[1731862825466,0.16538728,90499.0,90498.0,0.055247]
[1731862825764,0.16538728,90500.0,90499.0,0.055246]
[1731862825965,0.055244,90502.0,90501.0,0.055244]
[1731862826165,0.10898767,90502.0,90501.0,0.055244]
[1731862826859,0.10898722,90502.0,90501.0,0.055244]
[1731862827051,0.05374322,90502.0,90501.0,0.055244]
[1731862827253,0.19846474,90504.0,90503.0,0.055244]
[1731862827455,0.05374322,90504.0,90503.0,0.055244]
[1731862827665,0.19866943,90504.0,90503.0,0.055244]
[1731862827971,0.05374322,90504.0,90503.0,0.055244]
[1731862828162,0.19866943,90505.0,90504.0,0.055243]
[1731862828552,0.05374183,90505.0,90496.0,0.08312]
[1731862828852,0.20258152,90504.0,90496.0,0.06561144]
[1731862829055,0.41659901,90511.0,90496.0,0.06561144]
[1731862829056,0.43444449,90503.0,90496.0,0.06561144]
[1731862829255,0.20258152,90502.0,90501.0,0.055245]
[1731862829464,0.14883969,90502.0,90501.0,0.055245]
[1731862829663,0.416039,90511.0,90496.0,0.06561144]
[1731862829664,0.05374163,90503.0,90500.0,0.09500339]
[1731862829871,0.43447836,90502.0,90500.0,0.09500339]
[1731862830059,0.20260762,90501.0,90500.0,0.09500339]
[1731862830365,0.20260762,90501.0,90500.0,0.15024839]
[1731862831658,0.20260762,90501.0,90500.0,0.055245]
[1731862834357,0.20260762,90501.0,90500.0,0.11759019]
[1731862834557,0.20260762,90501.0,90492.0,0.03968569]
[1731862834771,0.23560762,90500.0,90499.0,0.055246]
[1731862835871,0.23184228,90500.0,90499.0,0.055246]
[1731862836067,0.28558391,90500.0,90499.0,0.055246]
[1731862836259,0.08674163,90500.0,90499.0,0.055246]
[1731862836657,0.23186261,90500.0,90499.0,0.055246]
[1731862836857,0.31660424,90500.0,90499.0,0.055246]
[1731862837367,0.11774163,90500.0,90499.0,0.055246]
[1731862841469,0.17298663,90500.0,90499.0,0.055246]
[1731862842973,0.17299141,90500.0,90499.0,0.055246]
[1731862843873,0.14199141,90500.0,90499.0,0.055246]
[1731862844183,0.05374641,90500.0,90499.0,0.055246]
[1731862844474,0.3608,90503.0,90501.0,0.055245]
[1731862844475,0.05374477,90502.0,90501.0,0.055245]
[1731862844774,0.05374477,90502.0,90501.0,0.11759019]
[1731862846464,0.55971677,90503.0,90502.0,0.055244]
[1731862846670,0.61343208,90503.0,90502.0,0.055244]
[1731862849766,0.41454163,90503.0,90502.0,0.055244]
[1731862849967,0.46978563,90503.0,90502.0,0.055244]
[1731862851174,0.78660208,90503.0,90499.0,0.01916495]
[1731862851372,0.37055808,90502.0,90499.0,0.01916495]
[1731862851573,0.37055808,90502.0,90501.0,0.055245]
[1731862851978,0.63572508,90502.0,90501.0,0.055245]
[1731862852178,0.69096908,90502.0,90501.0,0.055245]
[1731862852373,0.42580208,90502.0,90501.0,0.055245]
[1731862852568,0.61567374,90502.0,90496.0,0.06234519]
[1731862852769,0.29832415,90499.0,90496.0,0.06234519]
[1731862852973,0.29832415,90499.0,90491.0,9.692e-05]
[1731862852974,0.06234519,90497.0,90491.0,9.692e-05]
[1731862853283,0.2872799,90492.0,90491.0,9.692e-05]
[1731862853483,0.05525,90492.0,90491.0,9.692e-05]
[1731862853779,0.3673911,90492.0,90491.0,9.692e-05]
[1731862853972,0.42113273,90492.0,90491.0,9.692e-05]
[1731862854176,0.68630976,90492.0,90491.0,9.692e-05]
[1731862854668,0.42113273,90492.0,90491.0,9.692e-05]
[1731862855069,0.42113273,90492.0,90491.0,0.05534792]
[1731862855270,0.36588273,90492.0,90491.0,0.05534792]
[1731862855469,0.29832415,90495.0,90494.0,0.055249]
[1731862855676,0.84764785,90495.0,90494.0,0.055249]
[1731862855882,0.36121946,90495.0,90494.0,0.055249]
[1731862856271,0.3600328,90495.0,90494.0,0.055249]
[1731862856986,0.3062845,90495.0,90494.0,0.055249]
[1731862858376,0.35996391,90495.0,90494.0,0.055249]
[1731862858575,0.26501106,90495.0,90494.0,0.055249]
[1731862858789,0.35990081,90496.0,90495.0,0.055248]
[1731862859087,0.1656272,90497.0,90496.0,0.055248]
[1731862859387,0.1656272,90498.0,90497.0,0.055247]
[1731862859578,0.36144,90503.0,90502.0,0.055244]
[1731862859777,0.66854176,90503.0,90502.0,0.055244]
[1731862859971,0.46978912,90503.0,90502.0,0.055244]
[1731862860172,0.66854854,90503.0,90502.0,0.055244]
[1731862860367,0.46978912,90503.0,90502.0,0.055244]
[1731862860976,0.055245,90501.0,90492.0,0.07959043]
[1731862861178,0.05374512,90500.0,90499.0,0.055246]
[1731862862277,0.05374512,90500.0,90492.0,0.07959043]
[1731862862278,0.06234519,90502.0,90500.0,0.055245]
[1731862862474,0.05374591,90501.0,90500.0,0.055245]
[1731862862676,0.06234519,90502.0,90492.0,0.07959043]
[1731862862989,0.16563268,90498.0,90497.0,0.055247]
[1731862863476,0.06234519,90502.0,90492.0,0.07959043]
[1731862863675,0.36136001,90506.0,90497.0,0.055247]
[1731862863676,0.16563521,90498.0,90497.0,0.055247]
[1731862863882,0.16563521,90499.0,90497.0,0.06234519]
[1731862864088,0.16563211,90499.0,90498.0,0.055247]
[1731862864385,0.16563211,90500.0,90499.0,0.055246]
[1731862864596,0.3608,90506.0,90503.0,0.055244]
[1731862864597,0.19875617,90504.0,90503.0,0.055244]
[1731862864778,0.30774235,90504.0,90503.0,0.055244]
[1731862865092,0.10898618,90504.0,90503.0,0.055244]
[1731862865691,0.055246,90500.0,90497.0,0.055247]
[1731862865881,0.22087748,90499.0,90497.0,0.055247]
[1731862866077,0.16563148,90498.0,90497.0,0.055247]
[1731862866387,0.16563148,90498.0,90497.0,0.11759219]
[1731862866582,0.16563148,90500.0,90497.0,0.06234519]
[1731862866778,0.16563148,90500.0,90499.0,0.11759119]
[1731862868992,0.5601599,90506.0,90499.0,0.11759119]
[1731862869189,0.55955989,90506.0,90505.0,0.11758719]
[1731862869395,0.41454309,90506.0,90505.0,0.11758719]
[1731862869792,0.61330298,90506.0,90505.0,0.11758719]
[1731862870092,0.41454309,90506.0,90505.0,0.11758719]
[1731862872493,0.41454309,90506.0,90505.0,0.055242]
[1731862872884,0.055239,90510.0,90509.0,0.05524]
[1731862873081,0.10897881,90510.0,90509.0,0.05524]
[1731862873891,0.10897999,90510.0,90509.0,0.05524]
[1731862874094,0.055239,90510.0,90509.0,0.05524]
[1731862874795,0.25353279,90512.0,90494.0,0.06234519]
[1731862874998,0.11758919,90503.0,90502.0,0.055244]
[1731862875297,0.055247,90498.0,90497.0,0.055247]
[1731862875999,0.24647883,90498.0,90497.0,0.055247]
[1731862877092,0.24647883,90498.0,90491.0,0.05123575]
[1731862877093,0.055249,90494.0,90492.0,0.05525]
[1731862877399,0.19196052,90493.0,90492.0,0.05525]
[1731862877589,0.05525,90492.0,90491.0,9.692e-05]
[1731862877898,0.46979099,90492.0,90491.0,9.692e-05]
[1731862878094,0.60801254,90492.0,90491.0,9.692e-05]
[1731862878484,0.55439356,90492.0,90491.0,9.692e-05]
[1731862878688,0.84002547,90492.0,90491.0,9.692e-05]
[1731862878888,0.60814304,90492.0,90491.0,9.692e-05]
[1731862879392,0.60814304,90492.0,90481.0,0.0052]
[1731862879393,0.93976627,90492.0,90481.0,0.0052]
[1731862879590,0.93976627,90492.0,90475.0,0.0052]
[1731862879591,0.055259,90477.0,90475.0,0.0052]
[1731862879793,0.34238968,90477.0,90473.0,0.1]
[1731862880504,0.055261,90474.0,90473.0,0.1]
[1731862880695,0.416061,90474.0,90473.0,0.1]
[1731862880894,0.60815404,90474.0,90473.0,0.1]
[1731862881101,0.46981048,90474.0,90473.0,0.1]
[1731862882594,0.52078612,90474.0,90473.0,0.1]
[1731862883201,0.52080232,90474.0,90473.0,0.1]
[1731862884206,0.46703664,90474.0,90473.0,0.1]
[1731862886003,0.055266,90466.0,90465.0,0.0052]
[1731862886193,0.055269,90462.0,90460.0,0.00010746]
[1731862886594,0.51110664,90462.0,90460.0,0.00010746]
[1731862886808,0.0326,90461.0,90460.0,0.00010746]
[1731862886994,0.064,90461.0,90460.0,0.00010746]
[1731862892209,0.084017,90461.0,90460.0,0.00010746]
[1731862893500,0.051417,90461.0,90460.0,0.00010746]
[1731862893701,0.416069,90462.0,90460.0,0.00010746]
[1731862895407,0.46680911,90462.0,90460.0,0.00010746]
[1731862898110,0.055269,90461.0,90460.0,0.00010746]
[1731862905212,0.16525096,90461.0,90460.0,0.05537746]
[1731862905411,0.57739108,90462.0,90461.0,0.055269]
[1731862905613,0.41154011,90462.0,90461.0,0.055269]
[1731862906616,0.3608,90462.0,90461.0,0.055269]
[1731862907905,0.3608,90462.0,90460.0,0.00010746]
[1731862908117,0.055269,90461.0,90460.0,0.00010746]
[1731862908318,0.10903601,90461.0,90460.0,0.00010746]
[1731862913633,0.33852757,90461.0,90460.0,0.00010746]
[1731862914136,0.13963601,90461.0,90460.0,0.00010746]
[1731862917141,0.13964029,90461.0,90460.0,0.00010746]
[1731862919843,0.10904029,90461.0,90460.0,0.00010746]
[1731862921044,0.10904029,90461.0,90460.0,0.05537746]
[1731862921345,0.05377129,90461.0,90460.0,0.05537746]
[1731862922738,0.3608,90462.0,90460.0,0.05537746]
[1731862922943,0.3608,90478.0,90463.0,0.055268]
[1731862922944,0.16579519,90466.0,90463.0,0.055268]
[1731862923149,0.16579519,90467.0,90466.0,0.055266]
[1731862923333,0.16579519,90470.0,90469.0,0.055264]
[1731862923644,0.55977149,90478.0,90470.0,0.055264]
[1731862923645,0.16579519,90471.0,90470.0,0.055264]
[1731862923848,0.16572268,90472.0,90471.0,0.055263]
[1731862924048,0.16572268,90474.0,90469.0,0.55879553]
[1731862924242,0.16572268,90476.0,90475.0,0.055261]
[1731862924438,0.3608,90478.0,90473.0,0.0318]
[1731862924644,0.3608,90478.0,90477.0,0.055259]
[1731862925546,0.16572268,90482.0,90481.0,0.055257]
[1731862926147,0.16572268,90482.0,90473.0,0.0318]
[1731862926148,0.05375531,90482.0,90473.0,0.0318]
[1731862926337,0.19860653,90478.0,90473.0,0.0318]
[1731862926538,0.19860653,90476.0,90474.0,0.055261]
[1731862926739,0.25236184,90475.0,90474.0,0.055261]
[1731862927242,0.10901631,90475.0,90474.0,0.055261]
[1731862928141,0.30762284,90475.0,90474.0,0.055261]
[1731862928347,0.10901631,90475.0,90474.0,0.055261]
[1731862928545,0.30762284,90475.0,90474.0,0.055261]
[1731862928742,0.05375531,90475.0,90466.0,0.08308]
[1731862928944,0.16544356,90468.0,90466.0,0.08308]
[1731862929136,0.16544356,90468.0,90462.0,0.0301]
[1731862929137,0.22070856,90468.0,90467.0,0.055265]
[1731862929455,0.055265,90468.0,90467.0,0.055265]
[1731862929640,0.055268,90465.0,90464.0,0.055267]
[1731862929842,0.055268,90465.0,90460.0,0.00010746]
[1731862929843,0.055269,90461.0,90460.0,0.00010746]
[1731862930048,0.1090299,90461.0,90460.0,0.00010746]
[1731862933145,0.055269,90461.0,90460.0,0.00010746]
[1731862933346,0.1929232,90461.0,90460.0,0.00010746]
[1731862933540,0.2466841,90461.0,90460.0,0.00010746]
[1731862934252,0.055269,90461.0,90460.0,0.00010746]
[1731862934848,0.10639725,90461.0,90460.0,0.00010746]
[1731862935245,0.16016824,90461.0,90460.0,0.00010746]
[1731862935446,0.10639725,90461.0,90460.0,0.00010746]
[1731862935645,0.16016822,90461.0,90460.0,0.00010746]
[1731862936344,0.10903997,90461.0,90460.0,0.00010746]
[1731862936540,0.22073393,90461.0,90460.0,0.05537746]
[1731862937355,0.52626493,90462.0,90461.0,0.055269]
[1731862937746,0.3608,90462.0,90461.0,0.055269]
[1731862939051,0.16546493,90466.0,90460.0,0.00010746]
[1731862939253,0.16546493,90466.0,90464.0,0.055267]
[1731862939459,0.16546493,90466.0,90460.0,0.00010746]
[1731862939644,0.13235124,90461.0,90460.0,0.00010746]
[1731862939846,0.13235124,90461.0,90460.0,0.05537746]
[1731862941146,0.16546493,90461.0,90460.0,0.00010746]
[1731862941347,0.41118089,90470.0,90460.0,0.00010746]
[1731862941348,0.19857565,90466.0,90460.0,0.00010746]
[1731862941551,0.19857565,90466.0,90464.0,0.055267]
[1731862941751,0.19857565,90466.0,90460.0,0.00010746]
[1731862941752,0.25234068,90466.0,90460.0,0.00010746]
[1731862941957,0.1654431,90461.0,90460.0,0.00010746]
[1731862942361,0.1654431,90462.0,90461.0,0.055269]
[1731862943070,0.1654431,90462.0,90460.0,0.00010746]
[1731862943071,0.25384165,90467.0,90463.0,0.055268]
[1731862943251,0.055268,90465.0,90464.0,0.055267]
[1731862943560,0.10903217,90465.0,90464.0,0.055267]
[1731862944060,0.10903217,90465.0,90460.0,0.00010746]
[1731862944061,0.055269,90461.0,90460.0,0.00010746]
[1731862944357,0.58151608,90461.0,90460.0,0.00010746]
[1731862944560,0.416069,90461.0,90460.0,0.00010746]
[1731862944749,0.46983445,90461.0,90460.0,0.00010746]
[1731862945859,0.66840827,90461.0,90460.0,0.00010746]
[1731862946163,0.46983445,90461.0,90460.0,0.00010746]
[1731862946359,0.66840932,90461.0,90460.0,0.00010746]
[1731862946765,0.46983445,90461.0,90460.0,0.00010746]
[1731862947155,0.66840932,90461.0,90460.0,0.00010746]
[1731862947762,0.61464387,90461.0,90460.0,0.00010746]
[1731862947964,0.6684126,90461.0,90460.0,0.00010746]
[1731862948356,0.46983773,90461.0,90460.0,0.00010746]
[1731862948960,0.416069,90461.0,90460.0,0.00010746]
[1731862950059,0.416069,90461.0,90460.0,0.05537746]
[1731862952277,0.3608,90461.0,90460.0,0.05537746]
[1731862952567,0.13238925,90465.0,90460.0,0.00010746]
[1731862952773,0.52628656,90471.0,90465.0,0.055267]
[1731862952774,0.13238925,90466.0,90465.0,0.055267]
[1731862953066,0.13238925,90466.0,90465.0,0.1176696]
[1731862953366,0.13238925,90467.0,90466.0,0.055266]
[1731862953575,0.13238925,90467.0,90466.0,0.1176686]
[1731862953761,0.41662301,90471.0,90466.0,0.0624026]
[1731862953964,0.41662301,90471.0,90470.0,0.055264]
[1731862953965,0.416063,90471.0,90470.0,0.055264]
[1731862955962,0.3608,90471.0,90470.0,0.055264]
[1731862957571,0.16548656,90473.0,90471.0,0.055263]
[1731862957878,0.16548656,90473.0,90465.0,0.05082749]
[1731862958169,0.13246372,90466.0,90463.0,0.055268]
[1731862958360,0.13246372,90466.0,90462.0,0.08304]
[1731862958677,0.13246372,90467.0,90466.0,0.055266]
[1731862959271,0.16548656,90473.0,90472.0,0.055262]
[1731862961276,0.16548656,90475.0,90473.0,0.055262]
[1731862961467,0.16548656,90476.0,90469.0,0.09506884]
[1731862961670,0.13246869,90472.0,90469.0,0.14608948]
[1731862961864,0.13246767,90471.0,90469.0,0.14608948]
[1731862962067,0.13246767,90472.0,90469.0,0.14608948]
[1731862962270,0.13246767,90472.0,90470.0,0.055264]
[1731862962479,0.13246767,90472.0,90471.0,0.055263]
[1731862963272,0.13246767,90473.0,90469.0,0.14608948]
[1731862963471,0.13246767,90472.0,90471.0,0.055263]
[1731862964281,0.0537573,90472.0,90471.0,0.055263]
[1731862964478,0.0537573,90472.0,90469.0,0.14608948]
[1731862964675,0.0537573,90471.0,90470.0,0.055264]
[1731862964975,0.0537573,90471.0,90469.0,0.14608948]
[1731862965166,0.19857487,90473.0,90472.0,0.055262]
[1731862967581,0.19857487,90473.0,90469.0,0.14608948]
[1731862967582,0.19857487,90473.0,90470.0,0.055264]
[1731862967776,0.19857487,90473.0,90472.0,0.055262]
[1731862968366,0.25233248,90473.0,90472.0,0.055262]
[1731862968775,0.19857487,90473.0,90472.0,0.055262]
[1731862969682,0.25383687,90473.0,90472.0,0.055262]
[1731862969867,0.25383687,90473.0,90464.0,0.0052]
[1731862969868,0.055265,90469.0,90464.0,0.0052]
[1731862970069,0.18955549,90473.0,90458.0,0.0052]
[1731862970070,0.055269,90461.0,90458.0,0.0052]
[1731862970268,0.60541206,90461.0,90458.0,0.055271]
[1731862971171,0.60541206,90461.0,90459.0,0.05527]
[1731862971379,0.46982661,90461.0,90459.0,0.05527]
[1731862973383,0.46983833,90461.0,90459.0,0.05527]
[1731862973579,0.46983833,90461.0,90452.0,0.0052]
[1731862973783,0.46983833,90461.0,90454.0,0.055273]
[1731862973973,0.46983833,90461.0,90455.0,0.055273]
[1731862974169,0.46983833,90461.0,90456.0,0.055272]
[1731862974680,0.46983833,90461.0,90452.0,0.0052]
[1731862974872,0.51970928,90461.0,90453.0,0.055274]
[1731862977280,0.51970928,90461.0,90452.0,0.0052]
[1731862980183,0.51970928,90461.0,90453.0,0.055274]
[1731862980389,0.51970928,90461.0,90460.0,0.05537746]
[1731862980583,0.51970928,90461.0,90460.0,0.00010746]
[1731862980888,0.58154502,90461.0,90460.0,0.00010746]
[1731862981078,0.3608,90461.0,90460.0,0.1504463]
[1731862981283,0.16547602,90467.0,90466.0,0.055266]
[1731862981487,0.52627602,90468.0,90467.0,0.055266]
[1731862981788,0.16547602,90470.0,90468.0,0.055265]
[1731862981975,0.16547602,90474.0,90471.0,0.055263]
[1731862982283,0.16547602,90476.0,90472.0,0.06238588]
[1731862982481,0.16547602,90476.0,90473.0,0.055262]
[1731862982686,0.16547602,90476.0,90474.0,0.055261]
[1731862983183,0.055259,90478.0,90474.0,0.055261]
[1731862983184,0.16547602,90477.0,90474.0,0.055261]
[1731862983491,0.16547602,90476.0,90475.0,0.055261]
[1731862985283,0.16547602,90476.0,90471.0,0.055263]
[1731862985584,0.16547602,90475.0,90471.0,0.055263]
[1731862986182,0.16547602,90474.0,90467.0,0.051266]
[1731862986381,0.22073702,90474.0,90472.0,0.055262]
[1731862986894,0.055261,90474.0,90472.0,0.055262]
[1731862987693,0.22073702,90474.0,90472.0,0.055262]
[1731862987893,0.055263,90471.0,90466.0,0.060466]
[1731862988189,0.13236277,90468.0,90466.0,0.10588508]
[1731862988497,0.13236277,90467.0,90461.0,0.422589]
[1731862988792,0.13236555,90463.0,90461.0,0.421269]
[1731862988993,0.13236555,90463.0,90461.0,0.416069]
[1731862989392,0.416069,90462.0,90458.0,0.05003295]
[1731862989696,0.416069,90462.0,90456.0,0.055272]
[1731862989994,0.416069,90462.0,90455.0,0.0052]
[1731862991086,0.3608,90462.0,90455.0,0.0052]
[1731862991287,0.055269,90461.0,90455.0,0.060473]
[1731862993395,0.055269,90461.0,90455.0,0.0052]
[1731862993597,0.055269,90461.0,90456.0,0.055272]
[1731862993993,0.3608,90462.0,90461.0,0.055269]
[1731862994297,0.16547602,90463.0,90461.0,0.055269]
[1731862994488,0.18946391,90462.0,90461.0,0.055269]
[1731862994687,0.13569634,90462.0,90461.0,0.055269]
[1731862994889,0.18946391,90462.0,90461.0,0.055269]
[1731862995188,0.10705351,90466.0,90462.0,0.055268]
[1731862995388,0.18947686,90465.0,90462.0,0.055268]
[1731862995701,0.18947686,90464.0,90462.0,0.055268]
[1731862995902,0.18947686,90463.0,90462.0,0.055268]
[1731862996104,0.18947686,90465.0,90462.0,0.055268]
[1731862996308,0.18947686,90464.0,90462.0,0.055268]
[1731862996501,0.18947686,90464.0,90455.0,0.0052]
[1731862996502,0.10705351,90466.0,90463.0,0.055268]
[1731862996693,0.18913415,90465.0,90463.0,0.055268]
[1731862996893,0.18913415,90464.0,90463.0,0.055268]
[1731862997315,0.13536639,90464.0,90463.0,0.055268]
[1731862999498,0.18913415,90464.0,90463.0,0.055268]